{"text_format":"1","workbook":"xlsx","n_sheets":3,"sheets":["Sheet1","Summary","Sheet3"],"not_rendered":{"charts":0,"images":0,"macros":0,"external_links":0,"defined_names":1,"comments":0,"pivot_tables":1},"unopened":[],"bounds":{"document_bytes":16777216,"sheet_cells":100000,"rows_first":2000,"rows_last":500,"rows_between":2000,"halvings":0,"cell_chars":16384,"cell_head_chars":4096},"cells_cut":0,"cells_raw":0,"read":"whole","date_system":"1900"}

{"sheet":"Sheet1","index":0,"n_rows":30,"n_cols":16,"rows_kept":30,"cut":false,"hidden":false,"merged":[]}
[null," ",null,null,null,null,null,null,null,null,null," "]
[null,null,null,null,"Size","Ship Date","Arrival Pt","Date","Terms","FOB","Ship via","Contact:"]
[null,null," ","Pk","Scale","At Once",null," ","Net 30",null,null,"Container:"]
[" ",null," ",null,1,"XS","S ","M  ","L ","XL","2X","3X","4X",null,null,"Total"]
[null,"FOL",null,null,2,"X ",5,6,7,8,9,10]
["Style","Description",null,null,3,"2/3",4,5,6,7,8,9]
["29MR","FOL SS TEE ASST",{"$f":"F7+G7+H7+I7+J7+K7+L7+M7","v":72},null,null,null,null,null,72,null,null,null,null,null,null,{"$f":"C7*O7","v":0}]
["363MR","FOL SS TEE ASST",19379,null,null,null,5510,1113,590,12166,null,null,null,null,null,{"$f":"C8*O8","v":0}]
["363MXR","FOL SS TEE ASST",2756,null,null,null,null,null,null,null,534,{"$f":"2150+72","v":2222},null,null,null,0]
["HD6LR","FOL SS TEE ASST",28,null,null,null,28,null,null,null,null,null,null,null,null,0]
["HD6LXR","FOL SS TEE ASST",36,null,null,null,null,null,null,null,null,36,null,null,null,0]
["HD6R","FOL SS TEE ASST",60886,null,null,null,46742,8930,2547,2667,null,null,null,null,null,0]
["HD6XR","FOL SS TEE ASST",{"$f":"F13+G13+H13+I13+J13+K13+L13+M13","v":32109},null,null,null,null,null,null,null,21342,6385,4382,null,null,0]
[null,null,0,null,null,null,null,null,null,null,null,null,null,null,null,{"$f":"C14*N14","v":0}]
[null,null,0,null,null,null,null,null,null,null,null,null,null,null,null,0]
[null,null,0,null,null,null,null,null,null,null,null,null,null,null,null,0]
[null,null,0,null,null,null,null,null,null,null,null,null,null,null,null,0]
[null,null,0,null,null,null,null,null,null,null,null,null,null,null,null,0]
[null,null,0,null,null,null,null,null,null,null,null,null,null,null,null,0]
[null,null,0,null,null,null,null,null,null,null,null,null,null,null,null,0]
[null,null,0,null,null,null,null,null,null,null,null,null,null,null,null,0]
[]
[null,null,{"$f":"SUM(C7:C22)","v":115266},null,null,null,null,null,null,null,null,null,null,null,null,{"$f":"SUM(P7:P22)","v":0}]
[]
[]
[]
[null,null," ",null,null,null,null,null,null,null,null,null,null," "]
[null,null," ",null,null,null,null,null,null,null,null,null,null," "]
[null,null," ",null,null,null,null,null,null,null,null,null,null," "]
[null,null,null,null,null,null,null,null,null,null,null,null,null," "]

{"sheet":"Summary","index":1,"n_rows":137,"n_cols":3,"rows_kept":137,"cut":false,"hidden":false,"merged":[]}
[]
[]
["Sum of IDQTY"]
["Column1","STSTYD","Total"]
["PI.29MR.FC3.L.0.","JZ ADULT BURNT ORANGE T-SHIRT CREW",72]
["PI.363MR.425.S.0.","JZ ADULT LT  BLUE T-SHIRT CREW SHOR",72]
["PI.363MR.472.S.0.","JZ ADULT KELLY GREEN T-SHIRT CREW S",216]
["PI.363MR.472.XL.0.","JZ ADULT KELLY GREEN T-SHIRT CREW S",245]
["PI.363MR.5CU.XL.0.","JZ ADULT COLUMBIA BLUE T-SHIRT CREW",144]
["PI.363MR.5QI.S.0.","JZ ADULT TEXAS ORANGE T-SHIRT CREW",38]
["PI.363MR.5QI.XL.0.","JZ ADULT TEXAS ORANGE T-SHIRT CREW",72]
["PI.363MR.862.L.0.","JZ ADULT AZALEA T-SHIRT CREW SHORT",72]
["PI.363MR.862.M.0.","JZ ADULT AZALEA T-SHIRT CREW SHORT",792]
["PI.363MR.862.S.0.","JZ ADULT AZALEA T-SHIRT CREW SHORT",4248]
["PI.363MR.862.XL.0.","JZ ADULT AZALEA T-SHIRT CREW SHORT",1440]
["PI.363MR.BF4.S.0.","JZ ADULT TENNESSEE ORANGE T-SHIRT C",72]
["PI.363MR.BY1.XL.0.","JZ ADULT CLASSIC PINK T-SHIRT CREW",11]
["PI.363MR.ET3.M.0.","JZ ADULT CARDINAL T-SHIRT CREW SHOR",3]
["PI.363MR.ET3.XL.0.","JZ ADULT CARDINAL T-SHIRT CREW SHOR",180]
["PI.363MR.FFG.L.0.","JZ ADULT RETRO HEATHER PURPLE T-SHI",72]
["PI.363MR.FFG.S.0.","JZ ADULT RETRO HEATHER PURPLE T-SHI",72]
["PI.363MR.FFG.XL.0.","JZ ADULT RETRO HEATHER PURPLE T-SHI",7720]
["PI.363MR.FS1.L.0.","JZ ADULT CHOCOLATE T-SHIRT CREW SHO",74]
["PI.363MR.FS1.XL.0.","JZ ADULT CHOCOLATE T-SHIRT CREW SHO",71]
["PI.363MR.FU3.M.0.","JZ ADULT CYBER PINK T-SHIRT CREW SH",72]
["PI.363MR.FU3.S.0.","JZ ADULT CYBER PINK T-SHIRT CREW SH",144]
["PI.363MR.K9Y.XL.0.","JZ ADULT RETROHTHRCORAL T-SHIRT CRE",49]
["PI.363MR.LZW.L.0.","JZ ADULT RETROHTHRGREEN T-SHIRT CRE",72]
["PI.363MR.LZW.M.0.","JZ ADULT RETROHTHRGREEN T-SHIRT CRE",55]
["PI.363MR.LZW.XL.0.","JZ ADULT RETROHTHRGREEN T-SHIRT CRE",2016]
["PI.363MR.SI1.M.0.","JZ ADULT KIWI GREEN T-SHIRT CREW SH",72]
["PI.363MR.SI1.S.0.","JZ ADULT KIWI GREEN T-SHIRT CREW SH",144]
["PI.363MR.WAD.L.0.","JZ ADULT CRIMSON T-SHIRT CREW SHORT",300]
["PI.363MR.WAD.M.0.","JZ ADULT CRIMSON T-SHIRT CREW SHORT",91]
["PI.363MR.WAD.S.0.","JZ ADULT CRIMSON T-SHIRT CREW SHORT",288]
["PI.363MR.WAD.XL.0.","JZ ADULT CRIMSON T-SHIRT CREW SHORT",146]
["PI.363MR.XXL.S.0.","JZ ADULT RETRO HEATHER ROYAL T-SHIR",72]
["PI.363MR.XXL.XL.0.","JZ ADULT RETRO HEATHER ROYAL T-SHIR",72]
["PI.363MR.ZZE.M.0.","JZ ADULT MILITARY GREEN T-SHIRT CRE",28]
["PI.363MR.ZZE.S.0.","JZ ADULT MILITARY GREEN T-SHIRT CRE",144]
["PI.363MXR.425.3X.0.","JZ ADULT LT  BLUE T-SHIRT CREW SHOR",36]
["PI.363MXR.472.2X.0.","JZ ADULT KELLY GREEN T-SHIRT CREW S",71]
["PI.363MXR.472.3X.0.","JZ ADULT KELLY GREEN T-SHIRT CREW S",67]
["PI.363MXR.5CU.3X.0.","JZ ADULT COLUMBIA BLUE T-SHIRT CREW",24]
["PI.363MXR.5QI.2X.0.","JZ ADULT TEXAS ORANGE T-SHIRT CREW",31]
["PI.363MXR.5QI.3X.0.","JZ ADULT TEXAS ORANGE T-SHIRT CREW",72]
["PI.363MXR.862.2X.0.","JZ ADULT AZALEA T-SHIRT CREW SHORT",11]
["PI.363MXR.862.3X.0.","JZ ADULT AZALEA T-SHIRT CREW SHORT",259]
["PI.363MXR.BF4.3X.0.","JZ ADULT TENNESSEE ORANGE T-SHIRT C",36]
["PI.363MXR.BY1.2X.0.","JZ ADULT CLASSIC PINK T-SHIRT CREW",144]
["PI.363MXR.BY1.3X.0.","JZ ADULT CLASSIC PINK T-SHIRT CREW",1512]
["PI.363MXR.FFG.2X.0.","JZ ADULT RETRO HEATHER PURPLE T-SHI",57]
["PI.363MXR.K9Y.2X.0.","JZ ADULT RETROHTHRCORAL T-SHIRT CRE",37]
["PI.363MXR.K9Y.3X.0.","JZ ADULT RETROHTHRCORAL T-SHIRT CRE",108]
["PI.363MXR.QNG.2X.0.","JZ ADULT RETRO HEATHER PINK T-SHIRT",63]
["PI.363MXR.SI1.3X.0.","JZ ADULT KIWI GREEN T-SHIRT CREW SH",72]
["PI.363MXR.WAD.2X.0.","JZ ADULT CRIMSON T-SHIRT CREW SHORT",61]
["PI.363MXR.WAD.3X.0.","JZ ADULT CRIMSON T-SHIRT CREW SHORT",36]
["PI.363MXR.XXL.2X.0.","JZ ADULT RETRO HEATHER ROYAL T-SHIR",58]
["PI.363MXR.ZZE.2X.0.","JZ ADULT MILITARY GREEN T-SHIRT CRE",1]
["PI.HD6LR.BY1.S.0.","FOTL ADULT CLASSIC PINK T-SHIRT CRE",28]
["PI.HD6LXR.OK2.3XL.0.","FOTL ADULT YELLOW T-SHIRT CREW LONG",36]
["PI.HD6R.472.L.0.","FOTL ADULT KELLY GREEN T-SHIRT CREW",36]
["PI.HD6R.472.M.0.","FOTL ADULT KELLY GREEN T-SHIRT CREW",6465]
["PI.HD6R.472.S.0.","FOTL ADULT KELLY GREEN T-SHIRT CREW",10090]
["PI.HD6R.514.L.0.","FOTL ADULT ROYAL T-SHIRT CREW SHORT",60]
["PI.HD6R.514.M.0.","FOTL ADULT ROYAL T-SHIRT CREW SHORT",44]
["PI.HD6R.514.XL.0.","FOTL ADULT ROYAL T-SHIRT CREW SHORT",52]
["PI.HD6R.601.M.0.","FOTL ADULT NATURAL T-SHIRT CREW SHO",357]
["PI.HD6R.601.S.0.","FOTL ADULT NATURAL T-SHIRT CREW SHO",11724]
["PI.HD6R.7V2.L.0.","FOTL ADULT GOLD T-SHIRT CREW SHORT",72]
["PI.HD6R.871.M.0.","FOTL ADULT CHARCOAL T-SHIRT CREW SH",65]
["PI.HD6R.951.S.0.","FOTL ADULT ASH T-SHIRT CREW SHORT S",71]
["PI.HD6R.951.XL.0.","FOTL ADULT ASH T-SHIRT CREW SHORT S",58]
["PI.HD6R.BY1.L.0.","FOTL ADULT CLASSIC PINK T-SHIRT CRE",516]
["PI.HD6R.BY1.M.0.","FOTL ADULT CLASSIC PINK T-SHIRT CRE",72]
["PI.HD6R.BY1.S.0.","FOTL ADULT CLASSIC PINK T-SHIRT CRE",3960]
["PI.HD6R.CI1.S.0.","FOTL ADULT PACIFIC BLUE T-SHIRT CRE",48]
["PI.HD6R.DP1.L.0.","FOTL ADULT KHAKI T-SHIRT CREW SHORT",1511]
["PI.HD6R.DP1.S.0.","FOTL ADULT KHAKI T-SHIRT CREW SHORT",1163]
["PI.HD6R.DP1.XL.0.","FOTL ADULT KHAKI T-SHIRT CREW SHORT",432]
["PI.HD6R.EP3.L.0.","FOTL ADULT TRUE RED T-SHIRT CREW SH",25]
["PI.HD6R.EP3.M.0.","FOTL ADULT TRUE RED T-SHIRT CREW SH",3]
["PI.HD6R.EP3.S.0.","FOTL ADULT TRUE RED T-SHIRT CREW SH",69]
["PI.HD6R.EP3.XL.0.","FOTL ADULT TRUE RED T-SHIRT CREW SH",37]
["PI.HD6R.EY3.L.0.","FOTL ADULT MAROON T-SHIRT CREW SHOR",60]
["PI.HD6R.EY3.XL.0.","FOTL ADULT MAROON T-SHIRT CREW SHOR",49]
["PI.HD6R.FC3.M.0.","FOTL ADULT BURNT ORANGE T-SHIRT CRE",1800]
["PI.HD6R.FC3.S.0.","FOTL ADULT BURNT ORANGE T-SHIRT CRE",5040]
["PI.HD6R.FG3.L.0.","FOTL ADULT FOREST GREEN T-SHIRT CRE",9]
["PI.HD6R.FG3.M.0.","FOTL ADULT FOREST GREEN T-SHIRT CRE",1]
["PI.HD6R.FG3.S.0.","FOTL ADULT FOREST GREEN T-SHIRT CRE",7488]
["PI.HD6R.FG3.XL.0.","FOTL ADULT FOREST GREEN T-SHIRT CRE",2016]
["PI.HD6R.FS1.S.0.","FOTL ADULT CHOCOLATE T-SHIRT CREW S",6840]
["PI.HD6R.FS1.XL.0.","FOTL ADULT CHOCOLATE T-SHIRT CREW S",23]
["PI.HD6R.FU3.S.0.","FOTL ADULT CYBER PINK T-SHIRT CREW",71]
["PI.HD6R.OK2.L.0.","FOTL ADULT YELLOW T-SHIRT CREW SHOR",64]
["PI.HD6R.OK2.M.0.","FOTL ADULT YELLOW T-SHIRT CREW SHOR",60]
["PI.HD6R.OK2.S.0.","FOTL ADULT YELLOW T-SHIRT CREW SHOR",70]
["PI.HD6R.SI1.L.0.","FOTL ADULT KIWI GREEN T-SHIRT CREW",128]
["PI.HD6R.SI1.M.0.","FOTL ADULT KIWI GREEN T-SHIRT CREW",63]
["PI.HD6R.SI1.S.0.","FOTL ADULT KIWI GREEN T-SHIRT CREW",72]
["PI.HD6R.YP1.L.0.","FOTL ADULT JNAVY T-SHIRT CREW SHORT",66]
["PI.HD6R.YP1.S.0.","FOTL ADULT JNAVY T-SHIRT CREW SHORT",36]
["PI.HD6XR.425.2XL.0.","FOTL ADULT LT  BLUE T-SHIRT CREW SH",70]
["PI.HD6XR.425.4XL.0.","FOTL ADULT LT  BLUE T-SHIRT CREW SH",24]
["PI.HD6XR.472.2XL.0.","FOTL ADULT KELLY GREEN T-SHIRT CREW",5973]
["PI.HD6XR.472.3XL.0.","FOTL ADULT KELLY GREEN T-SHIRT CREW",3346]
["PI.HD6XR.472.4XL.0.","FOTL ADULT KELLY GREEN T-SHIRT CREW",6]
["PI.HD6XR.514.2XL.0.","FOTL ADULT ROYAL T-SHIRT CREW SHORT",61]
["PI.HD6XR.601.2XL.0.","FOTL ADULT NATURAL T-SHIRT CREW SHO",2661]
["PI.HD6XR.601.3XL.0.","FOTL ADULT NATURAL T-SHIRT CREW SHO",1607]
["PI.HD6XR.601.4XL.0.","FOTL ADULT NATURAL T-SHIRT CREW SHO",672]
["PI.HD6XR.7V2.2XL.0.","FOTL ADULT GOLD T-SHIRT CREW SHORT",144]
["PI.HD6XR.7V2.3XL.0.","FOTL ADULT GOLD T-SHIRT CREW SHORT",96]
["PI.HD6XR.7V2.4XL.0.","FOTL ADULT GOLD T-SHIRT CREW SHORT",9]
["PI.HD6XR.BFF.2XL.0.","FOTL ADULT WHITE BFF T-SHIRT CREW S",50]
["PI.HD6XR.BFF.3XL.0.","FOTL ADULT WHITE BFF T-SHIRT CREW S",72]
["PI.HD6XR.BFF.4XL.0.","FOTL ADULT WHITE BFF T-SHIRT CREW S",34]
["PI.HD6XR.BY1.2XL.0.","FOTL ADULT CLASSIC PINK T-SHIRT CRE",7410]
["PI.HD6XR.BY1.3XL.0.","FOTL ADULT CLASSIC PINK T-SHIRT CRE",1008]
["PI.HD6XR.BY1.4XL.0.","FOTL ADULT CLASSIC PINK T-SHIRT CRE",3552]
["PI.HD6XR.DP1.2XL.0.","FOTL ADULT KHAKI T-SHIRT CREW SHORT",4680]
["PI.HD6XR.DP1.3XL.0.","FOTL ADULT KHAKI T-SHIRT CREW SHORT",108]
["PI.HD6XR.EP3.2XL.0.","FOTL ADULT TRUE RED T-SHIRT CREW SH",28]
["PI.HD6XR.EP3.3XL.0.","FOTL ADULT TRUE RED T-SHIRT CREW SH",28]
["PI.HD6XR.EP3.4XL.0.","FOTL ADULT TRUE RED T-SHIRT CREW SH",9]
["PI.HD6XR.EY3.2XL.0.","FOTL ADULT MAROON T-SHIRT CREW SHOR",67]
["PI.HD6XR.FC3.2XL.0.","FOTL ADULT BURNT ORANGE T-SHIRT CRE",34]
["PI.HD6XR.FG3.3XL.0.","FOTL ADULT FOREST GREEN T-SHIRT CRE",102]
["PI.HD6XR.FG3.4XL.0.","FOTL ADULT FOREST GREEN T-SHIRT CRE",72]
["PI.HD6XR.FU3.2XL.0.","FOTL ADULT CYBER PINK T-SHIRT CREW",144]
["PI.HD6XR.YP1.2XL.0.","FOTL ADULT JNAVY T-SHIRT CREW SHORT",20]
["PI.HD6XR.YP1.3XL.0.","FOTL ADULT JNAVY T-SHIRT CREW SHORT",18]
["PI.HD6XR.YP1.4XL.0.","FOTL ADULT JNAVY T-SHIRT CREW SHORT",4]
["(blank)","(blank)"]
["Grand Total",null,115266]

{"sheet":"Sheet3","index":2,"n_rows":0,"n_cols":0,"rows_kept":0,"cut":false,"hidden":false,"merged":[]}